bitfinex/quotes_SOLUSD_20251218
["timestamp","ask_amount","ask_price","bid_price","bid_amount"]
[1766034139066,0.69,123.66,123.63,8.90838747]
[1766034139360,8.77488409,123.69,123.66,0.72]
[1766034139565,0.69,123.68,123.65,0.72]
[1766034141481,0.69,123.67,123.65,0.72]
[1766034142086,0.69,123.67,123.64,3.13478782]
[1766034142282,0.69,123.67,123.64,0.72]
[1766034142654,0.69,123.66,123.64,0.72]
[1766034143984,8.08661337,123.67,123.64,0.72]
[1766034144288,0.69,123.66,123.64,0.72]
[1766034144482,0.69,123.67,123.64,8.80798873]
[1766034145493,10.50046131,123.68,123.65,0.72]
[1766034145494,8.77567349,123.68,123.65,0.72]
[1766034145783,0.69,123.67,123.64,10.50277655]
[1766034145989,0.69,123.67,123.64,11.22277655]
[1766034149465,0.69,123.67,123.64,8.80798873]
[1766034149786,8.77609983,123.67,123.64,8.80798873]
[1766034151473,0.69,123.66,123.64,8.08798873]
[1766034151874,0.69,123.66,123.64,8.80798873]
[1766034154895,0.69,123.66,123.64,0.72]
[1766034158580,8.77609983,123.67,123.64,0.72]
[1766034158977,0.69,123.66,123.64,0.72]
[1766034161708,8.77679266,123.66,123.64,0.72]
[1766034163309,9.52,123.68,123.66,0.68]
[1766034163494,9.52,123.68,123.65,4.45361435]
[1766034163807,0.66,123.67,123.65,4.45361435]
[1766034165016,8.74609336,123.67,123.64,4.45361435]
[1766034165481,0.66,123.66,123.64,0.68]
[1766034167086,8.74609336,123.67,123.64,0.68]
[1766034169988,8.74609336,123.67,123.65,0.68]
[1766034170414,0.66,123.67,123.65,0.68]
[1766034170712,0.66,123.67,123.64,12.54160406]
[1766034172311,9.52,123.68,123.66,0.68]
[1766034172500,8.74519598,123.69,123.66,4.45361435]
[1766034172703,8.08519598,123.69,123.66,0.68]
[1766034172883,0.66,123.68,123.66,0.68]
[1766034177016,0.66,123.68,123.65,12.54091583]
[1766034177522,0.66,123.68,123.65,8.76730148]
[1766034181531,0.66,123.68,123.65,11.86091583]
[1766034181742,4.43361435,123.7,123.67,0.68]
[1766034181916,0.66,123.7,123.67,0.68]
[1766034182739,8.08408835,123.7,123.66,20.66966651]
[1766034182950,0.66,123.69,123.66,20.66966651]
[1766034183127,0.66,123.69,123.66,21.34966651]
[1766034183312,0.66,123.69,123.67,8.08599119]
[1766034184034,0.66,123.69,123.66,21.34993246]
[1766034185137,8.08408835,123.7,123.67,8.08598387]
[1766034185331,0.66,123.71,123.69,0.68]
[1766034186421,8.74356406,123.71,123.68,4.45361435]
[1766034187943,0.66,123.71,123.68,8.76528769]
[1766034188143,0.66,123.71,123.68,12.53890204]
[1766034193143,0.71,123.69,123.67,8.7659499]
[1766034193333,0.71,123.68,123.65,11.86079838]
[1766034193533,0.71,123.66,123.64,8.76796241]
[1766034193743,0.71,123.67,123.64,8.76796241]
[1766034194042,0.71,123.67,123.64,28.97397613]
[1766034194346,0.71,123.67,123.65,0.68]
[1766034194547,0.71,123.67,123.64,8.08796241]
[1766034194716,0.71,123.67,123.65,0.68]
[1766034194921,0.71,123.67,123.64,8.76796241]
[1766034196150,0.71,123.66,123.64,0.68]
[1766034197323,0.71,123.66,123.63,8.86834931]
[1766034197522,0.71,123.66,123.64,0.68]
[1766034197922,0.71,123.65,123.63,0.78]
[1766034198346,8.79670423,123.66,123.63,0.78]
[1766034198531,8.79670423,123.66,123.63,8.86862256]
[1766034198532,0.71,123.66,123.63,8.86862256]
[1766034200468,0.71,123.65,123.63,0.1]
[1766034204750,0.71,123.65,123.63,4.55361435]
[1766034205067,0.71,123.65,123.63,3.87361435]
[1766034205961,0.71,123.67,123.64,4.45361435]
[1766034207538,0.71,123.67,123.64,4.45356394]
[1766034208833,0.71,123.66,123.64,4.45356394]
[1766034209046,0.71,123.67,123.64,12.54149796]
[1766034211362,0.71,123.67,123.64,11.1830124]
[1766034212652,0.71,123.67,123.64,10.5030124]
[1766034212856,0.71,123.67,123.65,3.09507838]
[1766034213055,0.71,123.7,123.67,0.68]
[1766034213239,0.71,123.71,123.69,0.68]
[1766034213436,0.71,123.71,123.68,3.09507838]
[1766034214779,0.71,123.71,123.69,0.68]
[1766034214968,0.71,123.71,123.68,10.50034978]
[1766034215147,0.71,123.71,123.68,11.18034978]
[1766034216466,0.71,123.71,123.68,8.7652714]
[1766034216667,0.71,123.71,123.68,11.18034978]
[1766034217163,9.57,123.72,123.69,0.68]
[1766034217366,9.57,123.72,123.69,3.09507838]
[1766034217569,0.71,123.71,123.69,0.68]
[1766034217750,0.71,123.71,123.68,10.50034978]
[1766034217955,0.71,123.71,123.68,11.18034978]
[1766034218773,0.71,123.71,123.68,8.7652714]
[1766034218972,0.71,123.71,123.68,11.18034978]
[1766034221474,0.71,123.71,123.68,10.51034978]
[1766034223361,0.71,123.71,123.68,3.09507838]
[1766034224071,0.71,123.71,123.68,0.68]
[1766034226084,0.71,123.71,123.68,8.76537992]
[1766034226781,0.71,123.71,123.68,8.08537992]
[1766034227281,0.71,123.71,123.68,8.79537992]
[1766034227470,0.66,123.7,123.67,8.79580775]
[1766034227659,0.66,123.7,123.67,11.21088613]
[1766034227978,0.66,123.7,123.68,0.71]
[1766034230053,8.74358379,123.71,123.68,0.71]
[1766034230274,0.66,123.71,123.68,0.71]
[1766034231085,8.08347242,123.71,123.68,0.71]
[1766034231373,0.66,123.7,123.68,0.71]
[1766034232979,0.66,123.71,123.67,18.58446992]
[1766034233170,0.66,123.71,123.68,8.79533858]
[1766034233353,0.66,123.71,123.69,0.71]
[1766034233554,0.66,123.71,123.68,8.79533858]
[1766034234370,0.66,123.71,123.69,0.71]
[1766034234773,0.66,123.71,123.68,11.21041696]
[1766034235660,0.66,123.71,123.68,8.79533858]
[1766034238883,0.66,123.71,123.68,11.21041696]
[1766034239680,0.66,123.71,123.69,0.71]
[1766034241189,0.66,123.71,123.68,11.21041696]
[1766034241786,0.66,123.71,123.68,8.79533858]
[1766034243165,16.94304644,123.72,123.68,10.50041696]
[1766034243365,17.60304644,123.72,123.69,0.71]
[1766034243884,16.94304644,123.72,123.69,0.71]
[1766034244074,0.66,123.71,123.69,0.71]
[1766034246586,0.66,123.71,123.68,8.08533858]
[1766034246783,0.66,123.7,123.67,25.02907047]
[1766034247391,0.66,123.7,123.68,0.71]
[1766034247584,0.66,123.7,123.67,8.79602403]
[1766034251393,0.66,123.7,123.68,0.66]
[1766034257097,0.66,123.7,123.68,3.07507838]
[1766034257485,0.66,123.7,123.68,0.66]
[1766034258085,8.08280926,123.72,123.68,10.50012001]
[1766034258286,0.66,123.71,123.69,0.7]
[1766034258886,0.66,123.71,123.68,21.00024002]
[1766034259088,0.66,123.71,123.68,21.70024002]
[1766034259489,0.66,123.71,123.69,0.7]
[1766034259695,0.66,123.71,123.68,10.50012001]
[1766034259897,0.66,123.71,123.68,11.20012001]
[1766034260274,0.66,123.71,123.69,0.7]
[1766034260795,0.66,123.7,123.67,32.38405896]
[1766034260990,0.66,123.7,123.68,0.7]
[1766034266579,0.66,123.71,123.69,0.7]
[1766034267007,0.66,123.71,123.69,3.11507838]
[1766034267396,0.66,123.71,123.68,10.50034697]
[1766034267592,0.66,123.71,123.68,11.20034697]
[1766034267806,0.66,123.71,123.69,3.11507838]
[1766034268011,0.66,123.72,123.7,0.7]
[1766034269011,0.66,123.73,123.7,2.41507838]
[1766034269188,0.66,123.73,123.7,3.11507838]
[1766034269380,0.66,123.73,123.71,2.41507838]
[1766034269580,0.66,123.73,123.7,3.11507838]
[1766034269814,0.66,123.73,123.7,11.19913145]
[1766034271008,0.66,123.73,123.7,0.7]
[1766034271211,0.66,123.73,123.69,11.19953304]
[1766034271406,0.66,123.73,123.69,20.99617939]
[1766034271703,0.66,123.73,123.7,0.7]
[1766034272086,10.49743841,123.73,123.69,18.58110101]
[1766034272289,0.66,123.72,123.69,10.49664635]
[1766034272699,0.66,123.72,123.69,0.7]
[1766034272900,0.66,123.71,123.68,19.36016171]
[1766034273210,0.66,123.71,123.68,20.06016171]
[1766034273395,0.66,123.71,123.68,20.71611631]
[1766034273596,0.66,123.71,123.69,0.7]
[1766034276712,0.66,123.71,123.67,20.20436618]
[1766034276713,0.66,123.7,123.67,12.55671766]
[1766034277113,0.66,123.7,123.68,0.7]
[1766034277348,0.66,123.7,123.67,4.47097322]
[1766034277496,0.66,123.7,123.67,0.7]
[1766034278204,0.66,123.7,123.67,8.78600099]
[1766034279326,0.66,123.7,123.68,0.7]
[1766034286336,0.66,123.7,123.67,12.57697421]
[1766034286512,0.66,123.7,123.68,0.72]
[1766034291418,0.66,123.7,123.67,12.57697421]
[1766034291738,0.66,123.7,123.67,11.85697421]
[1766034291940,0.66,123.7,123.68,0.72]
[1766034300431,0.66,123.7,123.67,8.80600099]
[1766034303430,0.66,123.7,123.68,0.72]
[1766034313149,0.66,123.7,123.67,8.74589921]
[1766034314350,0.71,123.69,123.66,8.74648123]
[1766034316162,0.71,123.69,123.67,0.66]
[1766034317036,0.71,123.74,123.69,0.66]
[1766034317252,8.79161302,123.74,123.72,0.66]
[1766034317433,8.79161302,123.74,123.71,0.66]
[1766034317634,8.08161302,123.74,123.71,0.66]
[1766034317834,0.71,123.73,123.71,0.66]
[1766034318322,0.71,123.73,123.7,0.66]
[1766034318925,0.71,123.72,123.68,12.51605911]
[1766034319126,0.71,123.71,123.68,8.74508589]
[1766034319429,0.71,123.71,123.67,21.37673208]
[1766034319950,0.71,123.71,123.67,12.51673208]
[1766034320730,0.71,123.7,123.68,0.66]
[1766034321231,0.71,123.69,123.67,0.66]
[1766034323251,0.71,123.69,123.66,8.08661142]
[1766034323565,0.71,123.69,123.66,8.74661142]
[1766034325446,0.71,123.69,123.67,0.66]
[1766034325869,0.71,123.69,123.66,8.08661142]
[1766034326034,0.71,123.69,123.66,8.74661142]
[1766034326562,0.71,123.69,123.66,8.08661142]
[1766034326738,0.71,123.69,123.67,0.66]
[1766034328941,0.71,123.69,123.66,8.08661142]
[1766034329163,0.71,123.69,123.66,8.74661142]
[1766034331379,0.71,123.69,123.67,0.66]
[1766034332374,0.71,123.7,123.68,0.66]
[1766034333255,0.71,123.7,123.67,12.51683652]
[1766034333456,0.71,123.7,123.67,11.85683652]
[1766034333658,0.71,123.7,123.68,0.66]
[1766034334776,0.71,123.7,123.67,8.0858633]
[1766034334971,0.71,123.7,123.67,8.7458633]
[1766034335681,8.79414138,123.7,123.67,8.7458633]
[1766034335888,0.71,123.69,123.67,0.66]
[1766034336282,0.71,123.69,123.66,0.66]
[1766034336786,0.71,123.69,123.66,8.08662564]
[1766034336994,0.71,123.69,123.67,0.66]
[1766034358586,8.73492489,123.69,123.66,0.66]
[1766034358806,0.65,123.68,123.66,0.66]
[1766034360306,0.65,123.68,123.66,8.7466511]
[1766034361078,8.08492489,123.69,123.66,8.7466511]
[1766034361288,8.73492489,123.69,123.66,8.7466511]
[1766034361818,0.65,123.68,123.66,8.7466511]
[1766034362194,0.65,123.69,123.67,0.66]
[1766034362514,0.65,123.7,123.67,0.66]
[1766034362717,8.7341449,123.7,123.67,0.66]
[1766034363412,0.65,123.69,123.67,0.66]
[1766034364300,0.65,123.7,123.68,0.66]
[1766034366118,0.65,123.7,123.67,10.50016456]
[1766034366302,0.65,123.69,123.67,0.66]
[1766034366892,0.65,123.69,123.67,8.74598425]
[1766034367093,0.65,123.69,123.67,0.66]
[1766034368715,8.73478203,123.69,123.67,0.66]
[1766034373921,8.73478203,123.69,123.66,8.08666771]
[1766034374104,8.73478203,123.69,123.67,0.69]
[1766034375822,0.68,123.68,123.65,28.86161426]
[1766034376018,0.68,123.68,123.66,0.69]
[1766034376529,8.76478203,123.69,123.66,0.69]
[1766034378025,0.68,123.68,123.66,0.69]
[1766034378231,8.76478203,123.69,123.66,0.69]
[1766034378432,0.68,123.68,123.66,0.69]
[1766034380223,8.76539557,123.68,123.65,8.77733399]
[1766034380426,8.08539557,123.68,123.64,32.21407995]
[1766034380631,0.68,123.67,123.64,32.90407995]
[1766034380826,0.68,123.67,123.65,0.69]
[1766034381131,8.76539557,123.68,123.65,8.77732862]
[1766034381924,8.76539557,123.68,123.65,11.19166397]
[1766034382630,8.08472794,123.69,123.65,11.19166397]
[1766034382842,0.68,123.68,123.65,11.19166397]
[1766034383313,0.68,123.69,123.66,3.10433535]
[1766034384113,0.68,123.69,123.66,0.69]
[1766034384423,0.68,123.69,123.65,11.19166397]
[1766034384935,0.68,123.68,123.65,11.19166397]
[1766034387130,0.68,123.67,123.64,11.27433535]
[1766034387339,19.36023499,123.68,123.63,0.1]
[1766034387340,0.68,123.65,123.63,0.1]
[1766034387506,0.68,123.64,123.63,0.1]
[1766034388316,0.68,123.64,123.63,1e-08]
[1766034388519,8.76799741,123.64,123.63,1e-08]
[1766034389314,0.68,123.63,123.61,0.1]
[1766034389717,0.68,123.62,123.59,0.69]
[1766034389928,0.68,123.62,123.58,11.19564478]
[1766034390113,0.68,123.61,123.59,0.69]
[1766034390728,0.68,123.61,123.57,19.36686182]
[1766034390934,0.68,123.61,123.58,11.19615549]
[1766034392648,0.68,123.61,123.58,8.78182014]
[1766034393652,8.77007522,123.61,123.58,0.69]
[1766034394518,0.68,123.61,123.58,0.69]
[1766034394718,0.68,123.6,123.58,0.69]
[1766034394958,0.68,123.61,123.58,3.10433535]
[1766034396134,0.68,123.61,123.58,0.69]
[1766034396449,0.68,123.61,123.58,11.19625782]
[1766034397223,0.68,123.61,123.58,8.09185085]
[1766034397224,0.68,123.6,123.58,8.09185085]
[1766034397529,0.68,123.6,123.57,12.58760608]
[1766034397731,0.68,123.61,123.58,4.46766116]
[1766034399428,0.68,123.61,123.58,12.5594818]
[1766034400335,0.68,123.61,123.58,8.78182064]
[1766034403253,8.86,123.62,123.6,0.68]
[1766034403458,9.56,123.62,123.6,0.68]
[1766034404356,9.56,123.62,123.59,12.54871066]
[1766034408563,9.56,123.62,123.59,12.54731452]
[1766034410366,17.64934423,123.62,123.59,12.54731452]
[1766034410663,9.56,123.62,123.59,12.54731452]
[1766034411262,17.64932339,123.62,123.59,12.54731452]
[1766034411467,17.64932339,123.62,123.59,0.68]
[1766034412166,0.7,123.61,123.59,0.68]
[1766034413158,17.64932339,123.62,123.59,0.68]
[1766034413359,0.7,123.61,123.58,14.01626502]
[1766034413544,0.7,123.61,123.58,4.45626502]
[1766034414865,8.09006262,123.61,123.58,0.68]
[1766034415050,0.7,123.6,123.57,50.45921387]
[1766034415565,0.7,123.6,123.58,0.68]
[1766034416741,0.7,123.6,123.57,49.77921387]
[1766034416742,8.7914191,123.59,123.57,20.90053408]
[1766034416960,0.7,123.58,123.57,20.22053408]
[1766034417341,0.7,123.58,123.56,0.68]
[1766034417932,12.56768412,123.59,123.56,0.68]
[1766034418166,11.86768412,123.59,123.56,0.68]
[1766034418345,8.7914191,123.59,123.56,0.68]
[1766034418546,0.7,123.58,123.55,0.1]
[1766034418862,8.79277876,123.57,123.55,0.1]
[1766034419246,8.09277876,123.57,123.55,0.1]
[1766034419550,0.7,123.56,123.54,0.1]
[1766034422069,0.7,123.54,123.5,9.58994492]
[1766034422269,0.7,123.54,123.5,4.55626502]
[1766034422496,0.7,123.54,123.51,4.45626502]
[1766034422657,8.88,123.55,123.52,4.45626502]
[1766034422983,0.7,123.54,123.52,4.45626502]
[1766034423171,0.7,123.54,123.52,0.68]
[1766034423968,0.7,123.54,123.51,12.55272291]
[1766034424140,8.0945713,123.54,123.5,8.19699741]
[1766034424343,0.7,123.53,123.5,0.78]
[1766034424566,0.7,123.53,123.5,0.1]
[1766034424955,0.7,123.53,123.5,0.78]
[1766034425272,0.7,123.53,123.5,8.87654936]
[1766034425458,13.35626502,123.55,123.52,0.68]
[1766034425662,8.88,123.55,123.52,0.68]
[1766034425971,9.58,123.55,123.52,0.68]
[1766034426136,0.7,123.55,123.53,0.68]
[1766034426341,9.58,123.55,123.52,4.45626502]
[1766034426542,0.7,123.54,123.52,4.45626502]
[1766034428068,0.7,123.54,123.52,0.68]
[1766034429173,0.7,123.54,123.52,8.7758511]
[1766034429380,0.7,123.54,123.52,0.68]
[1766034429756,0.7,123.54,123.53,8.09519954]
[1766034429975,0.7,123.54,123.52,0.68]
[1766034430351,0.7,123.54,123.52,8.77557181]
[1766034430766,0.7,123.56,123.53,0.68]
[1766034432373,0.7,123.56,123.53,8.77513535]
[1766034436562,0.67,123.55,123.53,8.77513535]
[1766034437086,16.97286774,123.57,123.53,8.77513535]
[1766034437402,0.67,123.56,123.53,8.77513535]
[1766034438397,0.67,123.55,123.53,0.68]
[1766034438571,0.67,123.55,123.53,8.77519183]
[1766034438989,0.67,123.56,123.53,8.77519183]
[1766034440402,0.67,123.57,123.54,0.7]
[1766034441796,0.67,123.56,123.54,0.7]
[1766034445194,0.67,123.56,123.53,8.79519183]
[1766034445499,0.67,123.56,123.53,8.09519183]
[1766034445692,27.40990268,123.58,123.54,0.7]
[1766034445893,0.67,123.57,123.54,0.7]
[1766034449612,0.67,123.57,123.54,8.79445088]
[1766034451324,8.09266385,123.57,123.54,8.79445088]
[1766034451518,0.67,123.56,123.54,8.79445088]
[1766034452811,0.67,123.57,123.55,0.7]
[1766034453018,8.88,123.58,123.55,0.7]
[1766034453019,8.88,123.58,123.56,0.7]
[1766034453593,0.67,123.59,123.56,3.77626502]
[1766034453798,21.4171815,123.6,123.57,0.7]
[1766034454517,17.64091648,123.6,123.57,0.7]
[1766034455822,9.55,123.6,123.58,0.7]
[1766034456125,17.64068037,123.6,123.58,0.7]
[1766034457121,0.67,123.61,123.58,11.867983]
[1766034457305,17.63976838,123.62,123.59,0.7]
[1766034458306,0.67,123.61,123.59,0.7]
[1766034464424,0.67,123.61,123.59,11.20847178]
[1766034464629,9.57,123.62,123.59,11.20847178]
[1766034465106,17.65942216,123.62,123.59,11.20847178]
[1766034465306,17.65942216,123.62,123.6,0.7]
[1766034465503,9.57,123.62,123.6,0.7]
[1766034465705,8.7784617,123.64,123.62,0.7]
[1766034465908,16.9684617,123.64,123.62,0.7]
[1766034466128,17.6584617,123.64,123.62,0.7]
[1766034466538,0.69,123.66,123.63,3.11747373]
[1766034466709,0.69,123.67,123.65,0.7]
[1766034466904,8.88,123.67,123.65,0.7]
[1766034467420,8.88,123.67,123.65,3.11747373]
[1766034467931,8.77564898,123.68,123.66,0.7]
[1766034468408,8.08564898,123.68,123.66,0.7]
[1766034469211,8.77564898,123.68,123.65,0.7]
[1766034469422,8.77564898,123.68,123.65,3.11747373]
[1766034471038,8.08564898,123.68,123.66,0.7]
[1766034471533,8.77564898,123.68,123.66,0.7]
[1766034471740,8.08564898,123.68,123.66,0.7]
[1766034472036,8.77564898,123.68,123.66,0.7]
[1766034472935,8.77564898,123.68,123.65,3.11747373]
[1766034473128,8.08564898,123.68,123.66,0.7]
[1766034473939,8.08564898,123.68,123.65,3.11747373]
[1766034473940,8.77564898,123.68,123.65,3.11747373]
[1766034474235,2.41747373,123.67,123.64,0.7]
[1766034474434,0.69,123.65,123.62,0.7]
[1766034474623,10.50429885,123.66,123.63,0.7]
[1766034474818,8.77682512,123.66,123.63,0.7]
[1766034475023,11.19429885,123.66,123.63,0.7]
[1766034476113,11.19269525,123.66,123.63,0.7]
[1766034477513,0.69,123.64,123.61,8.08969819]
[1766034477713,0.69,123.64,123.62,0.7]
[1766034478123,3.10587013,123.65,123.62,0.7]
[1766034478345,0.69,123.65,123.62,0.7]
[1766034478530,0.69,123.65,123.62,3.11587013]
[1766034479155,0.69,123.65,123.62,0.7]
[1766034480845,0.69,123.65,123.62,8.78915767]
[1766034481364,0.69,123.65,123.62,11.2050278]
[1766034481926,2.41587013,123.66,123.63,0.7]
[1766034482225,20.07210258,123.67,123.63,0.7]
[1766034482448,0.69,123.67,123.64,0.7]
[1766034482750,8.88,123.67,123.64,0.7]
[1766034482943,9.57,123.67,123.64,0.7]
[1766034484118,9.57,123.67,123.64,8.08797179]
[1766034484436,2.41587013,123.66,123.63,8.78836804]
[1766034484643,3.10587013,123.66,123.63,8.78836804]
[1766034487539,3.10587013,123.66,123.63,0.7]
[1766034489533,11.19261138,123.66,123.63,0.7]
[1766034492968,11.19261138,123.66,123.62,0.66]
[1766034492969,3.10587013,123.65,123.62,0.66]
[1766034493163,0.69,123.64,123.62,0.66]
[1766034493539,3.10587013,123.65,123.62,0.66]
[1766034494243,3.10587013,123.65,123.59,28.12761788]
[1766034494244,3.10587013,123.63,123.61,0.66]
[1766034494767,2.41587013,123.63,123.61,0.66]
[1766034495263,20.07443157,123.64,123.61,0.66]
[1766034496545,17.65856144,123.64,123.61,0.66]
[1766034496861,20.07443157,123.64,123.61,0.66]
[1766034499555,19.38443157,123.64,123.6,8.09027307]
[1766034499774,0.69,123.63,123.6,0.66]
[1766034505147,0.69,123.63,123.61,0.66]
[1766034505345,8.77866494,123.63,123.61,0.66]
[1766034509382,8.77866494,123.63,123.6,0.66]
[1766034509561,0.69,123.62,123.6,0.66]
[1766034509877,2.41587013,123.61,123.58,0.66]
[1766034510053,2.41587013,123.61,123.57,0.66]
[1766034510054,0.69,123.6,123.57,0.66]
[1766034514170,0.69,123.59,123.57,0.66]
[1766034516088,8.7813182,123.59,123.57,0.66]
[1766034517585,11.19718833,123.59,123.57,0.66]
[1766034519188,10.50674851,123.6,123.57,0.66]
[1766034519360,11.86918541,123.6,123.57,0.66]
[1766034519562,12.55918541,123.6,123.57,0.66]
[1766034519860,8.78087838,123.6,123.57,8.0925771]
[1766034520073,8.78087838,123.6,123.58,0.66]
[1766034521184,8.78087838,123.6,123.57,0.66]
[1766034522080,12.55918541,123.6,123.57,0.66]
[1766034523199,8.78087838,123.6,123.57,0.66]
[1766034523490,12.55918541,123.6,123.57,0.66]
[1766034523792,8.78087838,123.6,123.57,0.66]
[1766034524016,8.08930593,123.62,123.59,0.66]
[1766034524314,11.86761296,123.62,123.59,0.66]
[1766034526277,12.55761296,123.62,123.59,0.66]
[1766034527578,4.46830703,123.61,123.58,0.66]
[1766034527799,0.69,123.6,123.58,0.66]
[1766034528080,4.46830703,123.6,123.58,0.66]
[1766034529174,4.46830703,123.6,123.56,16.97303166]
[1766034529398,4.46830703,123.6,123.57,0.66]
[1766034529978,0.69,123.59,123.57,0.66]
[1766034530182,3.77830703,123.6,123.57,0.66]
[1766034530183,4.46830703,123.6,123.57,0.66]
[1766034530683,4.46830703,123.6,123.57,8.0924744]
[1766034530907,4.46830703,123.6,123.58,0.66]
[1766034532995,0.69,123.6,123.58,0.66]
[1766034538919,11.86877489,123.61,123.58,0.66]
[1766034539220,8.78046786,123.61,123.58,0.66]
[1766034540108,0.69,123.6,123.58,0.66]
[1766034540702,8.78046786,123.61,123.58,0.66]
[1766034541895,0.69,123.6,123.58,0.66]
[1766034545327,3.7782286,123.61,123.58,0.66]
[1766034545702,3.7782286,123.61,123.58,8.091389]
[1766034546039,3.7782286,123.61,123.59,0.66]
[1766034546708,3.7782286,123.61,123.58,0.66]
[1766034547225,12.2784883,123.61,123.58,0.66]
[1766034550734,8.88,123.6,123.58,0.66]
[1766034567435,9.29,123.6,123.58,0.66]
[1766034567644,0.41,123.58,123.55,0.69]
[1766034567949,4.1882286,123.58,123.55,0.69]
[1766034568157,3.7782286,123.57,123.55,0.69]
[1766034568859,4.1882286,123.58,123.55,0.69]
[1766034569457,12.280298,123.58,123.55,0.69]
[1766034573538,0.41,123.57,123.55,0.69]
[1766034573873,0.41,123.57,123.51,0.69]
[1766034573874,0.41,123.55,123.51,0.69]
[1766034574043,3.7782286,123.53,123.51,8.78648423]
[1766034574238,4.1882286,123.54,123.51,8.78648423]
[1766034574532,4.1882286,123.54,123.51,0.69]
[1766034574948,0.41,123.54,123.52,0.69]
[1766034575148,9.29,123.56,123.52,0.69]
[1766034575361,13.0682286,123.56,123.52,3.7782286]
[1766034575664,8.88,123.56,123.53,0.69]
[1766034576666,20.75146807,123.56,123.53,0.69]
[1766034577072,21.16146807,123.56,123.53,0.69]
[1766034577638,0.41,123.55,123.53,0.69]
[1766034577858,20.75146807,123.56,123.53,0.69]
[1766034577859,21.16146807,123.56,123.53,0.69]
[1766034578063,3.7782286,123.55,123.53,0.69]
[1766034578546,0.41,123.53,123.5,0.79]
[1766034578867,4.1882286,123.53,123.5,0.79]
[1766034579064,3.7782286,123.53,123.5,0.79]
[1766034579562,3.7782286,123.52,123.5,0.79]
[1766034579769,12.28367065,123.53,123.5,0.79]
[1766034580253,0.41,123.56,123.52,0.69]
[1766034580456,3.7782286,123.56,123.52,0.69]
[1766034580657,3.7782286,123.56,123.53,0.69]
[1766034581059,4.1882286,123.57,123.53,0.69]
[1766034581367,2.41972887,123.56,123.53,0.69]
[1766034582162,8.09273453,123.57,123.54,0.7]
[1766034582354,2.82972887,123.56,123.54,0.7]
[1766034582868,2.82972887,123.56,123.53,8.09519198]
[1766034582869,2.82972887,123.56,123.52,0.7]
[1766034583755,10.92325492,123.56,123.52,0.7]
[1766034584162,8.50352605,123.56,123.52,0.7]
[1766034584352,10.92325492,123.56,123.52,0.7]
[1766034585739,8.50352605,123.56,123.52,0.7]
[1766034586139,10.92325492,123.56,123.52,0.7]
[1766034586342,10.51325492,123.56,123.52,0.7]
[1766034586545,10.92325492,123.56,123.52,0.7]
[1766034587167,8.50352605,123.56,123.52,0.7]
[1766034587345,10.92325492,123.56,123.53,0.7]
[1766034590971,8.50352605,123.56,123.53,0.7]
[1766034591180,10.92257549,123.57,123.54,0.7]
[1766034595376,2.82972887,123.56,123.54,0.7]